bitfinex-derivatives/quotes_ETHF0:USTF0_20250810
["timestamp","ask_amount","ask_price","bid_price","bid_amount"]
[1754859858755,1.6677,4196.1,4196.0,0.47656]
[1754859858950,4.38146785,4196.1,4196.0,0.47656]
[1754859859457,3.30516785,4196.1,4196.0,1.59716]
[1754859859653,3.32196785,4196.1,4195.8,0.47658]
[1754859859858,0.5914,4196.0,4195.9,1.1206]
[1754859860159,0.5914,4196.0,4195.9,1.7328]
[1754859860363,2.71376785,4196.1,4196.0,0.47656]
[1754859860563,4.38146785,4196.1,4196.0,1.1206]
[1754859862552,1.1996,4196.0,4195.1,0.483]
[1754859862759,1.1996,4196.0,4195.0,2.4415]
[1754859862760,1.6677,4195.8,4195.7,0.483]
[1754859862959,1.6677,4195.8,4195.7,1.7328]
[1754859863164,1.1996,4195.8,4195.7,1.7328]
[1754859864766,1.1996,4195.7,4193.6,0.0083202]
[1754859865068,1.1996,4195.7,4192.0,0.483]
[1754859865069,0.47692,4192.9,4192.6,2.1306607]
[1754859865365,0.47692,4192.9,4191.2,0.18656898]
[1754859865366,0.477,4192.2,4191.2,0.18656898]
[1754859865663,0.477,4192.2,4190.7,0.04152202]
[1754859865664,0.4681,4192.1,4191.5,0.6376]
[1754859866064,1.0595,4191.9,4191.6,0.6376]
[1754859866266,0.4681,4191.8,4191.6,0.6376]
[1754859866463,0.47696,4192.6,4190.7,1.19292]
[1754859866769,0.5914,4192.1,4191.9,1.7328]
[1754859866970,0.79768116,4193.8,4192.0,1.1206]
[1754859867163,0.47694,4192.8,4192.0,1.1206]
[1754859867363,0.79768116,4193.8,4192.0,1.1206]
[1754859867364,1.0595,4192.7,4192.0,1.1206]
[1754859867560,1.0595,4192.7,4192.4,0.47697]
[1754859867762,0.5914,4192.7,4192.6,0.483]
[1754859867961,0.5914,4192.7,4192.6,1.7328]
[1754859868157,1.0595,4193.2,4192.6,1.7328]
[1754859868464,1.0595,4193.2,4192.6,1.1206]
[1754859868665,1.0595,4193.2,4192.7,0.47694]
[1754859868866,1.0595,4193.2,4193.0,0.6376]
[1754859869067,1.0595,4193.2,4192.6,0.483]
[1754859869068,0.4681,4193.0,4192.7,0.6376]
[1754859869370,0.5914,4192.9,4192.8,0.6376]
[1754859870166,0.5914,4193.7,4192.8,0.6376]
[1754859870471,0.4681,4193.6,4192.8,0.6376]
[1754859870670,0.5914,4193.5,4192.8,1.11453]
[1754859871072,0.5914,4193.9,4192.9,0.6122]
[1754859871272,0.5914,4193.9,4193.3,0.47687]
[1754859871465,0.5914,4193.9,4192.4,1.19242]
[1754859871466,0.47692,4192.9,4192.0,0.47701]
[1754859871666,0.477,4192.2,4191.4,0.6376]
[1754859871868,1.0595,4192.1,4191.4,0.6376]
[1754859872175,0.4681,4191.6,4190.7,1.7328]
[1754859872373,0.5914,4191.5,4190.7,1.7328]
[1754859872670,0.47709,4191.4,4190.7,1.7328]
[1754859872865,0.5914,4191.5,4190.9,0.47714]
[1754859873063,0.47703,4192.0,4190.9,1.7328]
[1754859873266,0.47703,4192.0,4191.0,0.483]
[1754859873573,0.47703,4192.0,4191.1,0.6376]
[1754859873867,0.5914,4191.9,4191.1,0.6376]
[1754859874067,0.5914,4191.9,4191.1,0.47712]
[1754859874372,1.1996,4191.9,4191.1,1.1206]
[1754859874571,1.0595,4191.8,4191.1,1.1206]
[1754859874773,0.4681,4191.5,4191.2,0.483]
[1754859874970,0.5914,4191.4,4191.3,0.6376]
[1754859875173,1.0595,4191.4,4191.3,0.6376]
[1754859875470,1.0595,4191.4,4191.2,0.483]
[1754859875471,1.6677,4191.2,4191.1,0.005]
[1754859875667,1.0552,4191.2,4191.1,0.5952]
[1754859875868,1.0552,4191.2,4191.1,0.005]
[1754859876071,1.6505,4191.2,4191.1,0.005]
[1754859876570,0.6355,4191.6,4191.1,0.005]
[1754859876868,1.6946,4191.4,4191.2,0.5902]
[1754859877062,1.0993,4191.2,4191.1,0.005]
[1754859877268,1.6946,4191.2,4191.1,0.005]
[1754859878070,7.6946,4191.2,4191.1,0.005]
[1754859878865,7.6946,4191.2,4190.6,0.69957379]
[1754859878866,1.6946,4191.1,4190.6,0.69957379]
[1754859879064,1.0993,4190.7,4190.6,0.69957379]
[1754859879271,1.6946,4190.7,4190.6,0.69957379]
[1754859880374,0.4772,4190.4,4190.1,0.5902]
[1754859880578,1.0993,4190.2,4190.1,0.5902]
[1754859881279,0.4638,4190.9,4190.4,0.47719]
[1754859881479,0.4638,4191.2,4191.0,0.47713]
[1754859881778,0.6355,4191.1,4191.0,0.47713]
[1754859881978,1.0993,4191.1,4191.0,0.47713]
[1754859882168,1.0993,4191.1,4191.0,1.06733]
[1754859882769,1.0993,4191.6,4191.5,1.06727]
[1754859882968,1.0993,4191.6,4191.5,0.5902]
[1754859885173,0.47713,4191.1,4190.2,2.81546]
[1754859885373,1.0993,4192.0,4189.5,1.6224]
[1754859885573,0.47708,4191.5,4191.1,0.47712]
[1754859885774,0.4638,4191.4,4191.3,0.5902]
[1754859886382,1.0993,4191.4,4191.3,0.5902]
[1754859886577,1.0993,4191.4,4191.3,1.0673]
[1754859886770,1.0993,4191.4,4191.3,1.0324]
[1754859887174,0.597,4191.1,4189.7,1.19321]
[1754859887372,0.597,4191.1,4190.5,1.0322]
[1754859887373,0.0017,4191.1,4190.5,1.0322]
[1754859887572,0.0017,4191.1,4190.4,0.47719]
[1754859887573,0.6355,4191.6,4190.4,1.19301]
[1754859887774,0.47711,4191.3,4191.0,0.47713]
[1754859887974,1.11261,4191.3,4191.0,1.0322]
[1754859888184,1.11621,4191.3,4191.1,1.0322]
[1754859889077,0.6391,4191.3,4191.2,0.4422]
[1754859889373,0.6391,4191.3,4191.2,1.0324]
[1754859890383,1.2344,4190.9,4190.8,0.005]
[1754859890585,1.19291,4190.8,4189.7,0.47728]
[1754859890885,1.07253,4190.2,4189.8,0.4422]
[1754859891077,1.07254,4190.1,4189.9,0.5902]
[1754859891284,0.6355,4190.0,4189.9,0.5902]
[1754859892679,0.6355,4190.5,4189.9,1.6224]
[1754859892883,1.2308,4190.3,4189.9,0.59]
[1754859893087,1.2308,4190.3,4190.0,1.06745]
[1754859893088,0.5953,4190.3,4190.0,1.06745]
[1754859893282,0.6355,4190.2,4190.0,1.0324]
[1754859893480,0.6355,4190.2,4190.1,0.5902]
[1754859894886,0.6355,4190.2,4190.1,1.06744]
[1754859895391,0.6355,4190.2,4190.1,0.5902]
[1754859895583,0.4772,4190.5,4189.7,0.4422]
[1754859895782,0.6355,4190.1,4189.9,1.6224]
[1754859895982,1.11274,4190.1,4190.0,0.5902]
[1754859896886,0.6355,4190.1,4190.0,0.5902]
[1754859899596,0.6355,4190.1,4190.0,1.6224]
[1754859900287,0.79821171,4191.1,4190.0,1.6224]
[1754859900288,0.4772,4190.5,4190.2,1.6224]
[1754859900489,0.47723,4190.2,4189.9,0.5902]
[1754859900685,0.47723,4190.2,4189.8,0.005]
[1754859900686,0.47725,4190.0,4189.8,0.005]
[1754859900885,1.2308,4189.9,4189.8,0.005]
[1754859901092,0.6355,4189.9,4189.8,1.6274]
[1754859901589,0.005,4190.7,4189.9,1.19316]
[1754859901791,0.005,4190.7,4190.6,0.5902]
[1754859901992,0.005,4190.7,4190.6,1.6224]
[1754859902294,0.6405,4190.7,4190.6,1.6224]
[1754859902484,0.6405,4190.7,4189.8,0.005]
[1754859902485,0.47724,4190.1,4189.8,0.005]
[1754859902687,1.79324,4190.7,4189.8,0.005]
[1754859902688,1.70806,4189.9,4189.8,0.005]
[1754859902890,1.11276,4189.9,4189.8,0.005]
[1754859903091,1.70806,4189.9,4189.8,0.005]
[1754859903491,1.70806,4189.9,4189.4,1.02638771]
[1754859903492,1.70811,4189.5,4189.4,1.02638771]
[1754859906595,0.47731,4189.5,4189.4,1.02638771]
[1754859906897,1.0828,4189.6,4189.5,0.6322]
[1754859908199,1.0828,4189.6,4189.5,1.6486]
[1754859908200,0.4773,4189.6,4189.5,1.6486]
[1754859908401,1.40371171,4190.0,4189.7,1.6486]
[1754859908588,0.6055,4190.0,4189.8,0.4392]
[1754859908788,0.6055,4190.0,4189.6,0.4773]
[1754859908997,0.79821171,4190.4,4190.3,1.6486]
[1754859909196,0.6055,4190.9,4190.3,1.6486]
[1754859909394,1.33254896,4191.4,4189.1,0.47735]
[1754859909395,1.14952059,4190.4,4189.1,0.47735]
[1754859909705,1.2041,4189.9,4189.2,0.4392]
[1754859909890,1.2041,4190.2,4188.3,0.47744]
[1754859910094,1.2041,4190.2,4188.0,0.4392]
[1754859910095,1.26163935,4190.2,4188.0,0.4392]
[1754859910294,0.6055,4190.0,4189.7,0.47728]
[1754859910598,34.376,4190.8,4188.9,1.19342]
[1754859910599,0.79821171,4190.7,4190.6,0.4392]
[1754859910793,2.00231171,4191.9,4191.0,0.47713]
[1754859910996,2.00231171,4191.9,4191.1,0.4392]
[1754859910997,1.2041,4191.9,4191.1,0.4392]
[1754859911201,1.2041,4191.9,4191.5,0.4392]
[1754859911405,0.6055,4192.3,4191.6,1.6486]
[1754859911603,1.08249,4192.3,4191.6,1.6486]
[1754859911796,0.6055,4192.3,4191.6,1.6486]
[1754859912605,0.6055,4192.3,4191.7,0.47706]
[1754859912794,0.6055,4192.3,4192.1,1.2094]
[1754859912991,0.6055,4192.3,4192.2,0.4392]
[1754859913498,0.79821171,4193.0,4192.3,1.6486]
[1754859913698,0.6055,4192.6,4191.9,1.0214]
[1754859914602,0.47697,4192.5,4191.9,1.0214]
[1754859915299,0.6055,4192.6,4191.9,1.0214]
[1754859915502,0.6055,4192.6,4191.9,0.5822]
[1754859915805,1.08055,4192.7,4192.0,1.6486]
[1754859916004,0.6036,4192.7,4192.1,0.4392]
[1754859916607,0.005,4192.7,4192.2,1.6486]
[1754859917006,0.005,4192.7,4192.6,1.2094]
[1754859917307,0.005,4192.7,4192.6,1.6486]
[1754859919101,0.47697,4192.5,4192.1,1.2094]
[1754859919303,1.2041,4192.4,4192.2,0.4392]
[1754859919599,0.6055,4192.1,4191.9,0.4442]
[1754859919807,1.68112,4192.0,4191.9,0.4442]
[1754859921308,1.68112,4192.0,4191.9,0.005]
[1754859922008,0.47713,4191.1,4190.7,0.47717]
[1754859922211,0.47713,4191.1,4190.7,1.6486]
[1754859922407,0.6055,4190.9,4189.7,1.0164]
[1754859922712,0.47723,4190.2,4190.0,0.4392]
[1754859923013,1.2041,4190.2,4190.1,0.4392]
[1754859923408,0.47724,4190.1,4189.8,0.4392]
[1754859923613,1.2041,4190.0,4189.9,0.4392]
[1754859924003,1.2041,4190.5,4189.4,1.6486]
[1754859924206,1.2041,4190.3,4190.1,0.4392]
[1754859924512,1.2041,4190.2,4190.1,0.4392]
[1754859927320,2.34226059,4191.4,4190.1,6.0]
[1754859927321,0.5986,4191.4,4190.1,6.0]
[1754859927526,0.7959414,4192.4,4190.6,1.2094]
[1754859927821,0.6055,4192.3,4191.1,0.5772]
[1754859928122,0.18319023,4192.4,4190.5,1.19297]
[1754859928123,1.2041,4192.1,4191.5,0.4392]
[1754859928322,1.2041,4192.1,4191.4,0.6322]
[1754859928323,0.5986,4192.3,4192.2,0.47699]
[1754859928520,1.2041,4192.7,4192.5,0.47696]
[1754859928727,0.1828273,4193.1,4192.7,0.47693]
[1754859929023,0.1828273,4193.1,4192.4,0.4392]
[1754859929222,0.1828273,4193.1,4192.4,1.6486]
[1754859929422,2.16071668,4193.2,4192.7,0.47693]
[1754859929616,2.16071668,4193.2,4192.9,1.6486]
[1754859929823,2.16071668,4193.2,4193.0,0.4392]
[1754859930023,0.6055,4193.1,4193.0,0.4392]
[1754859930418,1.2041,4193.1,4193.0,0.4392]
[1754859931519,0.5986,4194.0,4193.1,0.6322]
[1754859931734,1.2041,4193.4,4192.6,0.4392]
[1754859932121,1.2041,4193.4,4192.8,0.47692]
[1754859932726,1.68097,4193.4,4192.7,0.005]
[1754859932927,0.005,4193.5,4192.7,0.005]
[1754859933128,1.2041,4193.3,4192.7,0.005]
[1754859933628,1.68098,4193.3,4192.7,0.005]
[1754859933831,0.47691,4193.0,4192.7,0.005]
[1754859934130,0.005,4193.5,4192.7,0.005]
[1754859934131,1.2041,4192.9,4192.8,0.4392]
[1754859935031,1.2041,4192.9,4192.7,0.005]
[1754859935230,0.47692,4193.0,4192.7,0.005]
[1754859935430,0.6277,4192.8,4192.7,0.4442]
[1754859935630,1.2254,4192.8,4192.7,0.4442]
[1754859936026,1.2254,4192.8,4192.7,0.005]
[1754859936225,1.2254,4193.4,4192.8,1.0931]
[1754859936426,0.005,4193.5,4193.4,1.6986]
[1754859937027,0.005,4193.5,4192.7,1.19735]
[1754859937028,0.005,4193.5,4193.1,0.47689]
[1754859937228,0.005,4193.5,4192.8,1.6986]
[1754859937525,0.005,4193.5,4192.9,1.6986]
[1754859937526,0.6277,4193.0,4192.9,1.6986]
[1754859937730,0.5977,4193.1,4193.0,1.6986]
[1754859938430,0.47693,4192.8,4192.7,0.005]
[1754859939132,0.47693,4192.8,4192.7,1.7036]
[1754859940021,2.41762,4193.2,4192.7,1.7036]
[1754859940022,0.4769,4193.1,4192.8,1.2321]
[1754859940228,1.2254,4192.8,4192.7,0.005]
[1754859941428,1.37524197,4193.7,4190.5,1.19297]
[1754859941429,0.47703,4191.9,4191.8,0.4665]
[1754859941633,0.47703,4191.9,4191.8,1.6986]
[1754859941930,0.47703,4191.9,4190.1,2.97795315]
[1754859941931,0.47709,4191.4,4191.3,1.2321]
[1754859942136,0.47714,4191.0,4190.8,1.2321]
[1754859942327,0.47714,4191.0,4190.9,1.2321]
[1754859942830,0.47714,4191.0,4190.9,1.6986]
[1754859943429,1.70254,4191.0,4190.9,1.6986]
[1754859944229,0.47714,4191.0,4190.9,1.6986]
[1754859944436,0.47713,4191.1,4190.7,0.47717]
[1754859944738,0.47714,4191.0,4190.8,1.6986]
[1754859944936,0.47712,4191.1,4190.9,1.6986]
[1754859945135,0.47712,4191.1,4191.0,1.6986]
[1754859946028,0.5977,4191.8,4190.9,1.6986]
[1754859946234,0.47708,4191.5,4191.1,1.6986]
[1754859946427,1.1924,4192.6,4189.8,2.38634]
[1754859946731,0.6277,4192.3,4191.6,1.6986]
[1754859946930,0.6277,4192.3,4191.6,1.2321]
[1754859947236,0.6277,4192.3,4191.8,1.2321]
[1754859947534,0.1794297,4192.9,4192.1,0.47701]
[1754859947732,35.5452,4193.3,4191.4,1.19272]
[1754859947733,0.47698,4192.4,4192.3,1.6986]
[1754859947934,0.47697,4192.5,4192.4,0.4665]
[1754859948128,1.70236,4192.6,4192.5,0.4665]
[1754859948635,24.719,4194.4,4192.5,0.4665]
[1754859948636,0.165,4194.9,4194.1,0.47678]
[1754859948837,0.165,4194.9,4193.9,0.6055]
[1754859948838,0.47676,4194.4,4194.0,1.0931]
[1754859949041,0.47676,4194.3,4193.7,0.4665]
[1754859949237,1.2254,4194.2,4193.7,0.94332]
[1754859949539,0.165,4194.0,4193.7,0.94332]
[1754859949740,0.5977,4193.7,4193.5,0.6266]
[1754859950032,0.4768,4194.0,4193.4,0.47686]
[1754859950237,0.4768,4194.0,4193.2,0.4665]
[1754859950238,1.86722,4193.8,4193.2,0.4665]
[1754859950433,1.3904,4193.5,4193.2,0.4665]
[1754859950634,0.7927,4193.5,4193.2,0.4665]
[1754859950839,0.165,4193.5,4193.2,0.94338]
[1754859951039,1.2254,4193.4,4193.2,0.94338]
[1754859951237,1.2254,4193.3,4193.2,0.94338]
[1754859951438,1.2254,4193.8,4193.4,0.47686]
[1754859951639,0.005,4193.7,4193.6,1.6986]
[1754859952745,0.47676,4194.3,4193.7,0.47683]
[1754859952938,0.47676,4194.3,4193.7,2.17543]
[1754859953140,0.47673,4194.6,4194.1,0.47678]
[1754859953344,0.95599816,4195.2,4193.9,0.4665]
[1754859953345,0.47675,4194.4,4193.9,0.4665]
[1754859953545,0.47677,4194.2,4193.9,1.6986]
[1754859953745,0.47677,4194.2,4194.0,1.2321]
[1754859953947,1.2254,4194.2,4194.1,0.4665]
[1754859954547,1.3954,4194.2,4194.1,0.4665]
[1754859954746,1.87218,4194.2,4193.7,0.94332]
[1754859954947,1.19175,4194.9,4192.9,1.19228]
[1754859954948,1.2254,4194.0,4193.9,0.9433]
[1754859955349,1.2254,4194.0,4193.9,0.4665]
[1754859956349,1.3954,4194.0,4193.9,0.4665]
[1754859956544,1.2254,4195.1,4194.1,0.4665]
[1754859956850,1.2254,4194.5,4194.4,0.47674]
[1754859957643,1.2254,4194.5,4194.4,2.17534]
[1754859957840,1.2254,4195.1,4194.8,0.4767]
[1754859958040,0.6277,4195.0,4194.8,0.4767]
[1754859958243,1.1,4195.5,4194.8,0.4665]
[1754859958444,1.2254,4195.3,4194.5,1.2321]
[1754859958646,1.1,4195.5,4194.4,0.47675]
[1754859958647,0.7677,4194.9,4194.4,0.47675]
[1754859958843,0.47671,4194.8,4194.4,0.47675]
[1754859959151,0.17,4194.6,4194.4,0.4665]
[1754859959345,1.2254,4194.5,4194.4,0.4665]
[1754859959743,1.2254,4194.5,4194.4,1.072]
[1754859959944,0.5977,4194.5,4194.4,1.6986]
[1754859960843,0.5977,4194.8,4193.6,1.19209]
[1754859961043,0.6277,4195.0,4194.7,2.17531]
[1754859961243,0.6277,4195.0,4194.8,1.70879]
[1754859961438,1.2254,4195.0,4194.9,1.6986]
[1754859961641,0.17,4195.3,4195.2,1.6986]
[1754859961642,1.2254,4195.3,4195.2,1.6986]
[1754859961847,1.1,4195.5,4193.9,2.38399]
[1754859962048,0.6277,4195.4,4195.3,0.47665]
[1754859962246,1.1,4195.5,4195.4,1.6986]
[1754859963338,1.57662,4195.5,4195.4,1.6986]
[1754859963545,2.20432,4195.5,4195.4,1.6986]
[1754859963742,1.1,4195.5,4195.4,1.6986]
[1754859964143,0.6274,4195.5,4195.4,7.6986]
[1754859964446,0.005,4195.9,4195.8,1.6986]
[1754859964853,1.2254,4196.9,4196.4,0.47651]
[1754859965145,2.38152,4198.4,4196.7,0.4665]
[1754859965146,1.2254,4197.6,4196.7,0.4665]
[1754859965352,1.2254,4197.6,4196.9,0.6055]
[1754859965548,2.1203,4197.5,4197.1,1.6236]
[1754859965745,0.6094,4197.8,4197.2,1.49562]
[1754859965941,0.6094,4197.8,4197.2,1.0192]
[1754859965942,0.47637,4197.7,4197.2,1.0192]
[1754859966144,0.47637,4197.7,4197.1,0.47644]
[1754859966348,1.1983,4198.0,4197.8,1.0192]
[1754859966543,1.1983,4198.0,4197.9,0.4434]
[1754859966854,1.1983,4198.0,4197.9,1.0192]
[1754859967049,0.47633,4198.1,4197.9,1.1802]
[1754859967246,0.47624,4198.9,4198.2,0.3092]
[1754859967447,1.055,4199.2,4198.3,1.1802]
[1754859967646,0.4456,4198.9,4198.5,0.47628]
[1754859967946,1.6439,4198.9,4198.6,1.08067]
[1754859968146,0.6094,4198.9,4198.8,0.885]
[1754859968347,0.4456,4199.4,4199.1,0.47621]
[1754859968552,1.6439,4199.4,4199.3,0.885]
[1754859968847,1.6439,4199.4,4198.2,1.19079]
[1754859968848,1.1,4199.5,4197.7,1.19094]
[1754859969048,1.1,4199.5,4199.2,0.4762]
[1754859969248,1.1,4199.5,4199.3,1.4894]
[1754859969249,2.7439,4199.5,4199.3,1.4894]
[1754859969448,2.155,4199.5,4199.4,1.4894]
[1754859969655,2.155,4199.5,4199.4,0.885]
[1754859969948,1.1,4199.5,4197.7,0.885]
[1754859970152,0.47619,4199.3,4198.5,0.47628]
[1754859970350,2.7439,4199.5,4198.9,0.47624]
[1754859970548,0.47618,4199.4,4198.8,1.4894]
[1754859970750,0.47618,4199.4,4198.8,0.885]
[1754859970952,1.1983,4199.3,4198.8,0.885]
[1754859971144,1.055,4199.2,4198.8,0.885]
[1754859971346,1.6439,4199.1,4198.8,1.4894]
[1754859971654,1.6439,4199.4,4199.2,0.4762]
[1754859971843,1.6439,4199.3,4199.1,0.885]
[1754859972048,1.055,4199.2,4199.1,0.885]
[1754859972249,1.6439,4199.2,4198.1,1.4894]
[1754859972448,0.47622,4199.1,4198.4,1.36129]
[1754859972653,2.12011,4199.2,4198.6,0.47626]
[1754859972849,1.6439,4198.4,4197.8,0.5758]
[1754859973048,0.6094,4198.3,4197.8,1.05216]
[1754859973248,1.6439,4198.2,4197.8,0.5758]
[1754859973548,0.4763,4198.4,4197.8,0.5758]
[1754859973549,1.6439,4198.3,4197.8,0.5758]
[1754859973857,1.6439,4198.1,4197.8,0.885]
[1754859974054,1.6439,4198.0,4197.8,0.885]
[1754859975655,1.6439,4198.0,4197.8,1.4894]
[1754859976362,1.6439,4198.0,4197.9,0.5758]
[1754859977955,1.6439,4198.0,4197.9,0.885]
[1754859980170,1.6439,4197.6,4197.5,0.005]
[1754859981761,1.19101,4197.5,4196.4,0.47652]
[1754859981962,0.6094,4196.4,4196.2,1.36654]
[1754859982153,0.6094,4196.4,4196.3,1.4944]
[1754859982154,1.6439,4196.4,4196.3,1.4944]
[1754859984565,1.6439,4197.5,4196.5,1.4944]
[1754859984866,1.6439,4197.2,4196.5,1.97091]
[1754859985058,1.6439,4196.9,4196.5,1.4944]
[1754859985260,0.4765,4196.7,4196.1,0.47655]
[1754859985460,0.4765,4196.7,4196.3,0.47653]
[1754859985666,1.0345,4196.9,4196.5,0.47651]
[1754859985971,1.191,4197.5,4195.9,1.19145]
[1754859985972,1.0345,4197.2,4197.1,0.47644]
[1754859986161,0.6094,4197.7,4197.3,1.4944]
[1754859986357,0.6094,4197.7,4196.8,1.19119]
[1754859986358,0.77662466,4198.4,4197.5,1.4944]
[1754859986556,0.5889,4198.4,4197.5,1.191]
[1754859987067,0.47628,4198.6,4198.1,0.47632]
[1754859987263,0.47627,4198.7,4198.3,0.4763]
[1754859987463,0.47626,4198.8,4198.3,0.4763]
[1754859987659,0.47624,4198.9,4198.5,0.47628]
[1754859988066,1.6439,4198.6,4198.5,0.47628]
[1754859988262,1.6439,4198.6,4198.4,1.36629]
[1754859988263,1.1983,4198.6,4198.4,1.36629]
[1754859988461,1.6439,4199.2,4198.8,0.47625]
[1754859988668,1.6439,4199.3,4199.2,0.4762]
[1754859988969,1.6439,4199.4,4199.3,0.47619]
[1754859989765,1.6439,4199.3,4199.2,0.4762]
[1754859990762,0.6094,4199.3,4199.2,1.3557]
[1754859990962,1.1,4199.5,4199.3,1.4839]
[1754859991168,1.1,4199.5,4199.4,1.4839]
[1754859992065,1.055,4199.4,4199.3,0.5758]
[1754859992260,1.6439,4199.4,4199.3,0.5758]
[1754859992668,0.4456,4199.3,4199.0,1.4839]
[1754859992864,0.47619,4199.4,4198.9,0.005]
[1754859993066,0.47623,4199.0,4198.9,0.005]
[1754859993269,2.12013,4199.0,4198.9,0.005]
[1754859994270,1.6439,4198.9,4198.1,0.47633]
[1754859994467,0.4763,4198.4,4197.8,0.3037]
[1754859994768,0.47632,4198.2,4197.9,0.47635]
[1754859994968,0.47632,4198.2,4197.8,0.3037]
[1754859994969,1.0345,4197.9,4197.8,0.47636]
[1754859995167,1.6439,4197.9,4197.8,0.47636]
[1754859995867,1.6836,4197.8,4197.7,0.47637]
[1754859996062,1.6836,4197.8,4197.6,0.47638]
[1754859996262,1.6836,4197.8,4197.6,1.36088]
[1754859996773,1.6836,4197.8,4197.1,1.19111]
[1754859996774,0.6056,4198.2,4198.1,0.47632]
[1754859996962,1.73791935,4198.5,4197.5,1.19098]
[1754859997166,1.73791935,4198.5,3227.0,1.18661884]
[1754859997167,1.6836,4197.9,4197.3,0.47642]
[1754859997374,0.6142,4197.7,4197.3,0.47642]
[1754859997568,1.6836,4197.6,4197.5,0.47639]
[1754859997767,1.6836,4197.5,4197.4,0.4764]
[1754859997968,1.6836,4197.5,4197.0,0.47645]
[1754859998168,1.6836,4198.0,4197.2,0.47643]
[1754859998368,1.2198,4197.7,4197.1,0.89844]
[1754859998574,1.6836,4197.6,4197.4,0.4764]
[1754859998873,1.6836,4197.5,4197.4,0.4764]
[1754860000473,0.16664624,4198.5,4198.1,1.1452]
[1754860000474,1.26163935,4198.2,4198.1,1.1452]
[1754860000775,0.61085553,4198.5,4198.4,1.5672]
[1754860000982,1.38681868,4199.4,4199.3,0.47619]
[1754860001174,1.1,4199.5,4199.3,2.04339]
[1754860001474,1.1,4199.5,4199.4,1.5672]
[1754860004574,2.7836,4199.5,4199.4,0.422]
[1754860004773,2.7836,4199.5,4199.3,0.47619]
[1754860004774,1.6836,4199.4,4199.3,0.47619]
[1754860005278,1.1,4199.5,4199.4,1.0011]
[1754860005474,1.1,4199.5,4199.4,1.5672]
[1754860005674,1.078,4199.2,4199.0,0.005]
[1754860005865,1.1,4199.5,4199.0,0.005]
[1754860005866,1.6836,4199.1,4199.0,0.48122]
[1754860006072,0.47629,4198.5,4197.8,0.47636]
[1754860006271,1.19054,4199.2,4197.8,0.47636]
[1754860006272,0.6056,4198.3,4197.8,0.47636]
[1754860006466,1.6836,4198.1,4197.8,1.04246]
[1754860006672,1.6836,4198.1,4197.6,1.0011]
[1754860006673,1.6836,4197.9,4197.6,0.422]
[1754860006876,0.4638,4197.7,4197.3,0.47641]
[1754860007177,0.6142,4197.7,4197.4,0.5661]
[1754860007478,1.0694,4197.6,4197.5,0.5661]
[1754860008472,1.0694,4197.6,4197.5,0.4764]
[1754860008674,1.6836,4197.6,4197.5,0.4764]
[1754860009877,1.6836,4197.6,4197.5,1.0425]
[1754860010077,0.6056,4198.5,4197.7,1.19094]
[1754860010380,1.1,4199.5,4198.7,0.5661]
[1754860010381,1.0694,4198.8,4198.7,0.5661]
[1754860010577,0.6142,4199.2,4198.4,0.422]
[1754860010578,0.6056,4199.1,4198.9,0.47624]
[1754860010774,0.6142,4199.4,4199.1,1.04232]
[1754860010973,0.6056,4199.3,4199.2,0.5661]
[1754860011179,1.1,4199.5,4199.3,0.47619]
[1754860011375,1.1,4199.5,4199.4,1.5672]
[1754860011776,2.1694,4199.5,4199.4,0.5661]
[1754860012783,1.0694,4199.4,4199.3,0.47619]
[1754860013176,1.1,4199.5,4199.4,1.5672]
[1754860013682,1.1,4199.5,4199.4,1.56315421]
[1754860017278,1.1,4199.5,4199.4,1.5672]
[1754860017670,0.005,4199.9,4199.8,1.93174]
[1754860018774,1.0694,4200.9,4200.8,0.47602]
[1754860019177,1.6836,4200.9,4200.8,0.47602]
[1754860019772,1.6836,4200.9,4200.8,1.04212]
[1754860019978,0.6142,4201.4,4201.3,0.47597]
[1754860020280,1.6836,4201.4,4201.3,0.47597]
[1754860021079,1.6836,4201.9,4201.8,0.47591]
[1754860021381,2.1594,4202.8,4202.2,0.47586]
[1754860021578,0.6142,4202.7,4202.4,0.47584]
[1754860021778,1.6836,4202.5,4202.4,0.47584]
[1754860021984,1.078,4203.1,4202.8,0.47579]
[1754860022174,1.6836,4203.1,4202.8,0.47579]
[1754860022374,1.6836,4203.3,4202.8,0.47579]
[1754860022574,0.6142,4203.2,4202.8,0.47579]
[1754860022774,1.6836,4203.1,4202.8,0.47579]
[1754860022972,0.47575,4203.2,4202.8,0.47579]
[1754860022973,1.6836,4202.9,4202.8,0.47579]
[1754860023183,0.47577,4203.1,4202.6,0.47582]
[1754860023684,0.47576,4203.2,4202.6,0.47581]
[1754860023882,1.0694,4202.7,4202.6,0.47581]
[1754860024281,1.0694,4202.7,4202.4,0.5661]
[1754860024581,1.2198,4202.9,4202.5,1.04193]
[1754860024778,1.6836,4202.8,4202.5,0.5661]
[1754860024975,1.6836,4202.7,4202.5,0.5661]
[1754860025172,1.18945,4203.0,4201.9,0.4759]
[1754860025372,0.47581,4202.7,4202.3,0.47585]
[1754860025576,1.6201,4202.4,4201.7,0.5661]
[1754860025877,1.6201,4202.3,4202.2,0.47586]
[1754860026277,1.35614123,4203.4,4202.2,0.47586]